fUST/lending_fUST_20250312
["ID","MTS","AMOUNT","RATE_DAILY","PERIOD"]
[355996736,1741788646682,-500.0,0.00023013,2]
[355996737,1741788646691,-500.0,0.00023013,2]
[355996738,1741788646700,-500.0,0.00023013,2]
[355996739,1741788646710,-500.0,0.00023013,2]
[355996741,1741788646720,-500.0,0.00023013,2]
[355996742,1741788646731,-994.221246,0.00023013,7]
[355996744,1741788646740,-994.221246,0.00023013,7]
[355996746,1741788646750,-500.0,0.00023013,2]
[355996748,1741788646762,-3000.0,0.00023187,2]
[355996750,1741788646771,-1208.46065835,0.0002321,3]
[355996751,1741788646780,-436.0617693,0.00023268,2]
[355996752,1741788646790,-500.0,0.00023287,2]
[355996753,1741788646800,-500.0,0.00023287,2]
[355996754,1741788646809,-260.32,0.00023287,2]
[355996755,1741788646819,-818.52,0.00023287,2]
[355996756,1741788646828,-500.0,0.00023287,2]
[355996757,1741788646837,-500.0,0.00023287,2]
[355996758,1741788646847,-500.0,0.00023287,2]
[355996759,1741788646856,-500.0,0.00023287,2]
[355996760,1741788646865,-500.0,0.00023287,2]
[355996761,1741788646874,-500.0,0.00023287,2]
[355996762,1741788646883,-500.0,0.00023287,2]
[355996763,1741788646893,-845.34,0.00023287,2]
[355996764,1741788646902,-500.0,0.00023287,2]
[355996765,1741788646911,-519.5,0.00023287,2]
[355996766,1741788646921,-821.08,0.00023287,2]
[355996767,1741788646930,-500.0,0.00023287,2]
[355996768,1741788646939,-807.82,0.00023287,2]
[355996769,1741788646949,-500.0,0.00023287,2]
[355996770,1741788646958,-21843.54,0.00023287,2]
[355996771,1741788646967,-500.0,0.00023287,2]
[355996772,1741788646977,-2603.4,0.00023287,2]
[355996773,1741788646987,-23256.65,0.00023287,2]
[355996774,1741788646996,-1000.0,0.00023287,7]
[355996775,1741788647005,-500.0,0.00023287,2]
[355996776,1741788647015,-500.0,0.00023287,2]
[355996777,1741788647024,-500.0,0.00023287,2]
[355996778,1741788647033,-500.0,0.00023287,2]
[355996779,1741788647043,-500.0,0.00023287,2]
[355996780,1741788647053,-500.0,0.00023287,2]
[355996781,1741788647062,-327.20072768,0.00023287,2]
[355996782,1741788647071,-500.0,0.00023287,2]
[355996783,1741788647080,-500.0,0.00023287,2]
[355996784,1741788647090,-500.0,0.00023561,2]
[355996785,1741788647099,-500.0,0.00023561,2]
[355996786,1741788647109,-818.52,0.00023561,2]
[355996787,1741788647118,-500.0,0.00023561,2]
[355996788,1741788647128,-500.0,0.00023561,2]
[355996789,1741788647137,-500.0,0.00023561,2]
[355996790,1741788647147,-500.0,0.00023561,2]
[355996791,1741788647156,-500.0,0.00023561,2]
[355996792,1741788647165,-529.33615281,0.00023561,2]
[355996793,1741788647176,-500.0,0.00023561,2]
[355996794,1741788647186,-845.34,0.00023561,2]
[355996795,1741788647195,-500.0,0.00023561,2]
[355996796,1741788647204,-519.5,0.00023561,2]
[355996797,1741788647213,-821.08,0.00023561,2]
[355996798,1741788647223,-196.10961402,0.00023561,2]
[355996799,1741788647234,-807.82,0.00023561,2]
[355996800,1741788647243,-500.0,0.00023561,2]
[355996801,1741788647253,-21843.54,0.00023561,2]
[355996802,1741788647263,-500.0,0.00023561,2]
[355996803,1741788647272,-2603.4,0.00023561,2]
[355996804,1741788647281,-23256.65,0.00023561,2]
[355996805,1741788647291,-1000.0,0.00023561,7]
[355996806,1741788647300,-500.0,0.00023561,2]
[355996807,1741788647310,-500.0,0.00023561,2]
[355996808,1741788647320,-500.0,0.00023561,2]
[355996809,1741788647330,-500.0,0.00023561,2]
[355996810,1741788647339,-500.0,0.00023561,2]
[355996811,1741788647349,-500.0,0.00023561,2]
[355996812,1741788647359,-500.0,0.00023561,2]
[355996813,1741788647369,-500.0,0.00023561,2]
[355996814,1741788647379,-600.86764469,0.00023652,6]
[355996815,1741788647389,-500.0,0.00023835,2]
[355996816,1741788647398,-500.0,0.00023835,2]
[355996817,1741788647407,-151.0,0.00023835,7]
[355996818,1741788647417,-151.0,0.00023835,7]
[355996819,1741788647427,-818.52,0.00023835,2]
[355996820,1741788647436,-500.0,0.00023835,2]
[355996821,1741788647446,-500.0,0.00023835,2]
[355996822,1741788647455,-500.0,0.00023835,2]
[355996823,1741788647465,-500.0,0.00023835,2]
[355996824,1741788647475,-500.0,0.00023835,2]
[355996825,1741788647484,-500.0,0.00023835,2]
[355996826,1741788647493,-845.34,0.00023835,2]
[355996827,1741788647503,-500.0,0.00023835,2]
[355996828,1741788647514,-519.5,0.00023835,2]
[355996829,1741788647523,-821.08,0.00023835,2]
[355996830,1741788647533,-807.82,0.00023835,2]
[355996831,1741788647543,-500.0,0.00023835,2]
[355996832,1741788647553,-21843.54,0.00023835,2]
[355996833,1741788647563,-500.0,0.00023835,2]
[355996834,1741788647573,-2603.4,0.00023835,2]
[355996835,1741788647584,-23256.65,0.00023835,2]
[355996836,1741788647593,-1000.0,0.00023835,7]
[355996837,1741788647603,-500.0,0.00023835,2]
[355996838,1741788647613,-500.0,0.00023835,2]
[355996839,1741788647626,-500.0,0.00023835,2]
[355996840,1741788647636,-186.55357227,0.00023835,2]
[355996841,1741788647645,-500.0,0.00023835,2]
[355996842,1741788647655,-500.0,0.00023835,2]
[355996843,1741788647664,-500.0,0.00023835,2]
[355996844,1741788647675,-500.0,0.00023835,2]
[355996845,1741788647684,-1208.46065835,0.00023969,3]
[355996846,1741788647694,-151.0,0.00024,7]
[355996847,1741788647704,-151.0,0.00024,7]
[355996848,1741788647716,-416.66666667,0.00024,7]
[355996849,1741788647726,-151.0,0.00024,7]
[355996850,1741788647735,-151.0,0.00024,7]
[355996851,1741788647745,-151.0,0.00024,7]
[355996852,1741788647756,-15577.25547611,0.00024,7]
[355996853,1741788647766,-994.221246,0.00024,7]
[355996854,1741788647775,-994.221246,0.00024,7]
[355996855,1741788647784,-205.0,0.0002401,2]
[355996856,1741788647793,-151.0,0.000241,5]
[355996857,1741788647803,-500.0,0.00024109,2]
[355996858,1741788647812,-500.0,0.00024109,2]
[355996859,1741788647822,-818.52,0.00024109,2]
[355996860,1741788647831,-500.0,0.00024109,2]
[355996861,1741788647840,-500.0,0.00024109,2]
[355996862,1741788647850,-151.0,0.00024109,7]
[355996863,1741788647859,-500.0,0.00024109,2]
[355996864,1741788647869,-500.0,0.00024109,2]
[355996865,1741788647878,-151.0,0.00024109,7]
[355996866,1741788647888,-500.0,0.00024109,2]
[355996867,1741788647897,-252.094449,0.00024109,7]
[355996868,1741788647907,-252.094449,0.00024109,7]
[355996869,1741788647916,-500.0,0.00024109,2]
[355996870,1741788647925,-845.34,0.00024109,2]
[355996871,1741788647935,-500.0,0.00024109,2]
[355996872,1741788647944,-519.5,0.00024109,2]
[355996873,1741788647954,-821.08,0.00024109,2]
[355996874,1741788647964,-807.82,0.00024109,2]
[355996875,1741788647973,-500.0,0.00024109,2]
[355996876,1741788647983,-21843.54,0.00024109,2]
[355996877,1741788647993,-500.0,0.00024109,2]
[355996878,1741788648002,-2603.4,0.00024109,2]
[355996879,1741788648013,-23256.65,0.00024109,2]
[355996880,1741788648023,-1000.0,0.00024109,7]
[355996881,1741788648033,-500.0,0.00024109,2]
[355996882,1741788648042,-562.30042109,0.00024109,2]
[355996883,1741788648052,-500.0,0.00024109,2]
[355996884,1741788648061,-500.0,0.00024109,2]
[355996885,1741788648070,-500.0,0.00024109,2]
[355996886,1741788648079,-500.0,0.00024109,2]
[355996887,1741788648089,-500.0,0.00024109,2]
[355996888,1741788648098,-150.0,0.00024183,2]
[355996889,1741788648107,-540.0,0.00024183,2]
[355996890,1741788648117,-1920.0,0.00024183,2]
[355996891,1741788648127,-2272.0,0.00024183,2]
[355996892,1741788648137,-500.0,0.00024383,2]
[355996893,1741788648147,-500.0,0.00024383,2]
[355996894,1741788648157,-818.52,0.00024383,2]
[355996895,1741788648167,-155.54301461,0.00024383,2]
[355996896,1741788648177,-500.0,0.00024383,2]
[355996897,1741788648187,-500.0,0.00024383,2]
[355996898,1741788648197,-500.0,0.00024383,2]
[355996899,1741788648207,-500.0,0.00024383,2]
[355996900,1741788648216,-500.0,0.00024383,2]
[355996901,1741788648226,-845.34,0.00024383,2]
[355996902,1741788648237,-500.0,0.00024383,2]
[355996903,1741788648247,-519.5,0.00024383,2]
[355996904,1741788648259,-821.08,0.00024383,2]
[355996905,1741788648269,-807.82,0.00024383,2]
[355996906,1741788648280,-500.0,0.00024383,2]
[355996907,1741788648290,-21843.54,0.00024383,2]
[355996908,1741788648301,-502.03769256,0.00024383,2]
[355996909,1741788648312,-2603.4,0.00024383,2]
[355996910,1741788648321,-23256.65,0.00024383,2]
[355996911,1741788648332,-1000.0,0.00024383,7]
[355996912,1741788648341,-500.0,0.00024383,2]
[355996913,1741788648351,-330.92526822,0.00024383,2]
[355996914,1741788648360,-500.0,0.00024383,2]
[355996915,1741788648370,-500.0,0.00024383,2]
[355996916,1741788648380,-500.0,0.00024383,2]
[355996917,1741788648390,-500.0,0.00024383,2]
[355996918,1741788648400,-4844.9249062,0.00024401,2]
[355996919,1741788648410,-205.0,0.0002446,2]
[355996920,1741788648420,-7366.54942886,0.000245,5]
[355996921,1741788648430,-239268.346391,0.000245,30]
[355996922,1741788648439,-390481.12808304,0.000245,15]
[355996923,1741788648449,-151.0,0.000245,7]
[355996924,1741788648458,-151.0,0.000245,7]
[355996925,1741788648468,-151.0,0.000245,7]
[355996926,1741788648478,-151.0,0.000245,7]
[355996927,1741788648488,-151.0,0.000245,7]
[355996928,1741788648498,-213.025188,0.000245,7]
[355996929,1741788648509,-208.210136,0.000245,7]
[355996930,1741788648519,-207.209681,0.000245,7]
[355996931,1741788648529,-2200.0,0.000245,2]
[355996932,1741788648539,-994.221246,0.000245,7]
[355996933,1741788648548,-994.221246,0.000245,7]
[355996934,1741788648558,-994.221246,0.000245,7]
[355996935,1741788648568,-994.221246,0.000245,7]
[355996936,1741788648578,-151.0,0.00024657,7]
[355996937,1741788648587,-500.0,0.00024657,2]
[355996938,1741788648598,-260.32,0.00024657,2]
[355996939,1741788648609,-818.52,0.00024657,2]
[355996940,1741788648618,-500.0,0.00024657,2]
[355996941,1741788648629,-500.0,0.00024657,2]
[355996942,1741788648641,-500.0,0.00024657,2]
[355996943,1741788648652,-500.0,0.00024657,2]
[355996944,1741788648662,-500.0,0.00024657,2]
[355996945,1741788648672,-845.34,0.00024657,2]
[355996946,1741788648682,-500.0,0.00024657,2]
[355996947,1741788648692,-519.5,0.00024657,2]
[355996948,1741788648702,-821.08,0.00024657,2]
[355996949,1741788648717,-807.82,0.00024657,2]
[355996950,1741788648728,-500.0,0.00024657,2]
[355996951,1741788648738,-21843.54,0.00024657,2]
[355996952,1741788648749,-2603.4,0.00024657,2]
[355996953,1741788648760,-23256.65,0.00024657,2]
[355996954,1741788648769,-1000.0,0.00024657,7]
[355996955,1741788648779,-500.0,0.00024657,2]
[355996956,1741788648789,-500.0,0.00024657,2]
[355996957,1741788648799,-500.0,0.00024657,2]
[355996958,1741788648809,-549.82592055,0.00024657,2]
[355996959,1741788648818,-500.0,0.00024657,2]
[355996960,1741788648828,-380.0,0.00024658,2]
[355996961,1741788648838,-3350.401966,0.00024658,2]
[355996962,1741788648848,-160.0,0.00024692,17]
[355996963,1741788648857,-160.0,0.00024692,5]
[355996964,1741788648867,-3611.97349987,0.000247,2]
[355996965,1741788648877,-1208.46065835,0.00024728,3]
[355996966,1741788648887,-151.0,0.000248,7]
[355996967,1741788648896,-151.0,0.000248,7]
[355996968,1741788648906,-2000.0,0.000248,2]
[355996969,1741788648916,-151.0,0.000248,7]
[355996970,1741788648926,-252.094449,0.000248,7]
[355996971,1741788648935,-252.094449,0.000248,7]
[355996972,1741788648945,-8883.50068582,0.000248,2]
[355996973,1741788648956,-188.48197902,0.0002485,2]
[355996974,1741788648966,-427.30057071,0.000249,2]
[355996975,1741788648975,-151.0,0.000249,7]
[355996976,1741788648985,-151.0,0.000249,7]
[355996977,1741788648995,-151.0,0.000249,7]
[355996978,1741788649006,-205.0,0.000249,2]
[355996979,1741788649016,-151.0,0.000249,7]
[355996980,1741788649026,-151.0,0.000249,7]
[355996981,1741788649036,-150.38,0.000249,2]
[355996982,1741788649045,-150.38,0.000249,2]
[355996983,1741788649055,-206.131443,0.000249,2]
[355996984,1741788649065,-252.094449,0.000249,7]
[355996985,1741788649075,-252.094449,0.000249,7]
[355996986,1741788649085,-151.0,0.000249,7]
[355996987,1741788649094,-151.0,0.000249,7]
[355996988,1741788649104,-207069.57208963,0.000249,2]
[355996989,1741788649214,-1650.5,0.000249,2]
[355996990,1741788649226,-4002.83679012,0.000249,2]
[355996991,1741788649238,-5956.43521321,0.000249,2]
[355996992,1741788649252,-285.47860703,0.000249,2]
[355996993,1741788649447,-508.16056948,0.00021917,2]
[355996994,1741788649457,-535.0785,0.00022086,15]
[355996995,1741788649467,-3789.55899502,0.000249,2]
[355996996,1741788664552,-492.0,0.00022086,15]
[355996997,1741788664581,-378.20637443,0.00025,30]
[355996998,1741788664606,-5530.79963363,0.00025,14]
[355996999,1741788664633,-416.66666667,0.00025,30]
[355997000,1741788664658,-500.0,0.00025215,10]
[355997001,1741788664684,-500.0,0.00025215,10]
[355997002,1741788664709,-500.0,0.00025215,10]
[355997003,1741788664737,-500.0,0.00025215,10]
[355997004,1741788664761,-500.0,0.00025215,10]
[355997005,1741788664787,-500.0,0.00025215,10]
[355997006,1741788664815,-500.0,0.00025215,10]
[355997007,1741788664839,-875.45059601,0.00025215,10]
[355997008,1741788664864,-500.0,0.00025215,10]
[355997009,1741788664888,-500.0,0.00025215,10]
[355997010,1741788664913,-500.0,0.00025215,10]
[355997011,1741788664937,-500.0,0.00025215,10]
[355997012,1741788664962,-500.0,0.00025215,10]
[355997013,1741788664987,-500.0,0.00025215,10]
[355997014,1741788665012,-500.0,0.00025215,10]
[355997015,1741788665040,-500.0,0.00025215,10]
[355997016,1741788665066,-500.0,0.00025215,10]
[355997017,1741788665095,-500.0,0.00025215,10]
[355997018,1741788665122,-500.0,0.00025215,10]
[355997019,1741788665148,-500.0,0.00025215,10]
[355997020,1741788665173,-500.0,0.00025215,10]
[355997021,1741788665199,-500.0,0.00025215,10]
[355997022,1741788665223,-300.0,0.000254,12]
[355997023,1741788665251,-160.0,0.00026,10]
[355997024,1741788665279,-416.66666667,0.00026,10]
[355997025,1741788665305,-155.7609632,0.000261,60]
[355997026,1741788665336,-300.0,0.000269,12]
[355997027,1741788665361,-354.45358,0.00027,120]
[355997028,1741788665394,-179.0544235,0.00027397,120]
[355997029,1741788665420,-1069.69239993,0.000278,120]
[355997030,1741788665447,-250.0,0.00028,120]
[355997031,1741788665474,-300.0,0.000284,13]
[355997032,1741788665500,-2500.64686527,0.00029,10]
[355997033,1741788665528,-300.0,0.000299,14]
[355997034,1741788665554,-9741.95260953,0.0003,60]
[355997035,1741788665578,-5455.99624253,0.0003,60]
[355997036,1741788665603,-93000.0,0.0003,60]
[355997037,1741788665629,-250.0,0.0003,120]
[355997038,1741788665703,456.52,0.00022086,15]
[355997039,1741788668865,495.0,0.00022086,15]
[355997040,1741788673237,418.3767,0.00022086,15]
[355997041,1741788677262,453.044,0.00022336,15]
[355997042,1741788679735,228.0,0.0003,10]
[355997043,1741788681261,1037.167,0.00022336,15]
[355997044,1741788685492,778.45,0.00022336,15]
[355997045,1741788690780,584.4863,0.00022336,15]
[355997046,1741788694883,437.23,0.00022336,15]
[355997047,1741788698882,328.976,0.00022336,15]
[355997048,1741788705209,984.5,0.00022336,15]
[355997049,1741788730756,3611.97349987,0.0003,10]
[355997050,1741788734936,871.52,0.00010959,2]
[355997051,1741788735188,4952.93153661,0.0003,30]
[355997052,1741788778115,52305.99794215,0.0003,10]
[355997053,1741788863395,206.3350219,0.00025,10]
[355997054,1741788884569,281.96312417,0.00025,10]
[355997055,1741788903189,573.5,0.00022336,15]
[355997056,1741788910600,500.0,0.00021917,14]
[355997057,1741788916257,159.690022,0.000245,30]
[355997059,1741789032550,10000.0,0.00025,10]
[355997060,1741789044691,188278.51183193,0.00025,10]
[355997063,1741789137278,20126.0,0.00016021,2]
[355997067,1741789387247,230.2155583,0.00015696,2]
[355997080,1741789596960,1286.18,0.00016021,2]
[355997083,1741789699327,643.09,0.00016021,2]
[355997084,1741789703065,184.567916,0.00015694,2]
[355997085,1741789703969,-151.0,0.00016086,2]
[355997086,1741789719143,321.55,0.00016021,2]
[355997148,1741789832014,-33.567916,0.00016086,2]
[355997151,1741789832026,-184.567916,0.00016479,2]
[355997152,1741789832036,-489.46454731,0.00016548,2]
[355997153,1741789832048,-1050.48386198,0.00016548,2]
[355997154,1741789832057,-155.94,0.00016638,2]
[355997156,1741789832067,-155.94,0.00016638,2]
[355997157,1741789832077,-155.94,0.00016638,2]
[355997158,1741789832086,-155.94,0.00016638,2]
[355997159,1741789832096,-300.0,0.00016647,2]
[355997160,1741789832105,-600.0,0.00016647,2]
[355997161,1741789832114,-500.0,0.00016648,2]
[355997163,1741789832124,-525.79703029,0.00016648,2]
[355997164,1741789832133,-500.0,0.00016648,2]
[355997165,1741789832143,-500.0,0.00016648,2]
[355997166,1741789832152,-500.0,0.00016648,2]
[355997167,1741789832162,-525.79703029,0.00016648,2]
[355997168,1741789832172,-500.0,0.00016648,2]
[355997169,1741789832181,-467.42716022,0.00016648,2]
[355997170,1741789832191,-500.0,0.00016648,2]
[355997171,1741789832201,-525.79703029,0.00016648,2]
[355997172,1741789832210,-500.0,0.00016648,2]
[355997173,1741789832220,-500.0,0.00016648,2]
[355997174,1741789832229,-525.79703029,0.00016648,2]
[355997175,1741789832239,-500.0,0.00016648,2]
[355997176,1741789832249,-500.0,0.00016648,2]
[355997177,1741789832259,-525.79703029,0.00016648,2]
[355997178,1741789832269,-500.0,0.00016648,2]
[355997179,1741789832278,-525.79703029,0.00016648,2]
[355997180,1741789832288,-500.0,0.00016648,2]
[355997181,1741789832300,-525.79703029,0.00016648,2]
[355997183,1741789832310,-500.0,0.00016648,2]
[355997185,1741789832322,-500.0,0.00016648,2]
[355997187,1741789832331,-525.79703029,0.00016648,2]
[355997189,1741789832341,-500.0,0.00016648,2]
[355997191,1741789832350,-500.0,0.00016648,2]
[355997193,1741789832360,-525.79703029,0.00016648,2]
[355997195,1741789832370,-500.0,0.00016648,2]
[355997197,1741789832380,-500.0,0.00016648,2]
[355997199,1741789832389,-525.79703029,0.00016648,2]
[355997202,1741789832399,-500.0,0.00016648,2]
[355997204,1741789832408,-500.0,0.00016648,2]
[355997206,1741789832417,-525.79703029,0.00016648,2]
[355997208,1741789832426,-500.0,0.00016648,2]
[355997210,1741789832436,-500.0,0.00016648,2]
[355997212,1741789832445,-525.79703029,0.00016648,2]
[355997214,1741789832454,-500.0,0.00016648,2]
[355997216,1741789832463,-500.0,0.00016648,2]
[355997218,1741789832474,-500.0,0.00016648,2]
[355997219,1741789832483,-525.79703029,0.00016648,2]
[355997220,1741789832492,-361.00056789,0.00016648,2]
[355997221,1741789832512,-138.99943211,0.00016648,2]
[355997222,1741789832523,-525.79703029,0.00016648,2]
[355997223,1741789832532,-500.0,0.00016648,2]
[355997224,1741789832541,-500.0,0.00016648,2]
[355997225,1741789832554,-525.79703029,0.00016648,2]
[355997226,1741789832563,-473.80475132,0.00016648,2]
[355997241,1741789837825,-26.19524868,0.00016648,2]
[355997242,1741789837835,-500.0,0.00016648,2]
[355997243,1741789837844,-525.79703029,0.00016648,2]
[355997244,1741789837855,-500.0,0.00016648,2]
[355997245,1741789837865,-500.0,0.00016648,2]
[355997246,1741789837874,-525.79703029,0.00016648,2]
[355997247,1741789837883,-500.0,0.00016648,2]
[355997248,1741789837893,-500.0,0.00016648,2]
[355997249,1741789837903,-525.79703029,0.00016648,2]
[355997250,1741789837913,-500.0,0.00016648,2]
[355997251,1741789837922,-500.0,0.00016648,2]
[355997252,1741789837931,-525.79703029,0.00016648,2]
[355997253,1741789837941,-500.0,0.00016648,2]
[355997254,1741789837951,-525.79703029,0.00016648,2]
[355997255,1741789837961,-525.79703029,0.00016648,2]
[355997256,1741789837970,-551.17234777,0.00016648,2]
[355997257,1741789837980,-525.79703029,0.00016648,2]
[355997258,1741789837994,-525.79703029,0.00016648,2]
[355997259,1741789838004,-525.79703029,0.00016648,2]
[355997260,1741789838014,-525.79703029,0.00016648,2]
[355997261,1741789838026,-525.79703029,0.00016648,2]
[355997262,1741789838036,-525.79703029,0.00016648,2]
[355997263,1741789838046,-525.79703029,0.00016648,2]
[355997264,1741789838059,-525.79703029,0.00016648,2]
[355997265,1741789838069,-525.79703029,0.00016648,2]
[355997266,1741789838079,-525.79703029,0.00016648,2]
[355997267,1741789838088,-525.79703029,0.00016648,2]
[355997268,1741789838097,-525.79703029,0.00016648,2]
[355997269,1741789838107,-525.79703029,0.00016648,2]
[355997270,1741789838116,-525.79703029,0.00016648,2]
[355997271,1741789838125,-525.79703029,0.00016648,2]
[355997272,1741789838134,-500.0,0.00016648,2]
[355997273,1741789838143,-500.0,0.00016648,2]
[355997274,1741789838153,-425.8980148,0.00016648,2]
[355997275,1741789838162,-500.0,0.00016648,2]
[355997276,1741789838172,-500.0,0.00016648,2]
[355997277,1741789838181,-500.0,0.00016648,2]
[355997278,1741789838191,-300.0,0.00016648,2]
[355997279,1741789838200,-2236.83608691,0.00016648,2]
[355997280,1741789838210,-2236.83608691,0.00016648,2]
[355997281,1741789838219,-2236.83608691,0.00016648,2]
[355997282,1741789838229,-2236.83608691,0.00016648,2]
[355997283,1741789838239,-2236.83608691,0.00016648,2]
[355997284,1741789838248,-2236.83608691,0.00016648,2]
[355997285,1741789838258,-2236.83608691,0.00016648,2]
[355997286,1741789838267,-2236.83608691,0.00016648,2]
[355997287,1741789838277,-2236.83608691,0.00016648,2]
[355997288,1741789838287,-2236.83608691,0.00016648,2]
[355997289,1741789838296,-2236.83608691,0.00016648,2]
[355997290,1741789838309,-2236.83608691,0.00016648,2]
[355997291,1741789838319,-2236.83608691,0.00016648,2]
[355997292,1741789838329,-2236.83608691,0.00016648,2]
[355997293,1741789838339,-2236.83608691,0.00016648,2]
[355997294,1741789838348,-2236.83608691,0.00016648,2]
[355997295,1741789838357,-2236.83608691,0.00016648,2]
[355997296,1741789838367,-2236.83608691,0.00016648,2]
[355997297,1741789838377,-2236.83608691,0.00016648,2]
[355997298,1741789838387,-2236.83608691,0.00016648,2]
[355997299,1741789838396,-2236.83608691,0.00016648,2]
[355997300,1741789838405,-2236.83608691,0.00016648,2]
[355997301,1741789838415,-2236.83608691,0.00016648,2]
[355997302,1741789838424,-2236.83608691,0.00016648,2]
[355997303,1741789838433,-2236.83608691,0.00016648,2]
[355997304,1741789838443,-2236.83608691,0.00016648,2]
[355997305,1741789838452,-2236.83608691,0.00016648,2]
[355997306,1741789838461,-2236.83608691,0.00016648,2]
[355997307,1741789838471,-2217.38533834,0.00016648,2]
[355997308,1741789838480,-2217.38533834,0.00016648,2]
[355997309,1741789838489,-2217.38533834,0.00016648,2]
[355997310,1741789838499,-2217.38533834,0.00016648,2]
[355997311,1741789838508,-2217.38533834,0.00016648,2]
[355997312,1741789838518,-2217.38533834,0.00016648,2]
[355997313,1741789838527,-2217.38533834,0.00016648,2]
[355997314,1741789838537,-2217.38533834,0.00016648,2]
[355997315,1741789838548,-2217.38533834,0.00016648,2]
[355997316,1741789838561,-2217.38533834,0.00016648,2]
[355997317,1741789838572,-2217.38533834,0.00016648,2]
[355997318,1741789838582,-2217.38533834,0.00016648,2]
[355997319,1741789838592,-2217.38533834,0.00016648,2]
[355997320,1741789838603,-2217.38533834,0.00016648,2]
[355997321,1741789838612,-2217.38533834,0.00016648,2]
[355997322,1741789838622,-2217.38533834,0.00016648,2]
[355997323,1741789838631,-2217.38533834,0.00016648,2]
[355997324,1741789838641,-2217.38533834,0.00016648,2]
[355997325,1741789838650,-2217.38533834,0.00016648,2]
[355997326,1741789838659,-2217.38533832,0.00016648,2]
[355997327,1741789838668,-2217.38533832,0.00016648,2]
[355997328,1741789838678,-2217.38533832,0.00016648,2]
[355997329,1741789838687,-2217.38533832,0.00016648,2]
[355997330,1741789838696,-222000.0,0.00016657,2]
[355997331,1741789838705,-646.0777226,0.00016673,2]
[355997332,1741789838715,-309.66004739,0.00016673,2]
[355997333,1741789838724,-500.0,0.00016673,2]
[355997334,1741789838733,-500.0,0.00016673,2]
[355997335,1741789838742,-500.0,0.00016673,2]
[355997336,1741789838751,-500.0,0.00016673,2]
[355997337,1741789838760,-500.0,0.00016673,2]
[355997338,1741789838770,-500.0,0.00016673,2]
[355997339,1741789838779,-500.0,0.00016673,2]
[355997340,1741789838788,-500.0,0.00016673,2]
[355997341,1741789838797,-500.0,0.00016673,2]
[355997342,1741789838808,-500.0,0.00016673,2]
[355997343,1741789838817,-500.0,0.00016673,2]
[355997344,1741789838826,-500.0,0.00016673,2]
[355997345,1741789838835,-500.0,0.00016673,2]
[355997346,1741789838844,-500.0,0.00016673,2]
[355997347,1741789838853,-500.0,0.00016673,2]
[355997348,1741789838862,-500.0,0.00016673,2]
[355997349,1741789838871,-153.05187386,0.00016673,2]
[355997350,1741789838881,-500.0,0.00016673,2]
[355997351,1741789838890,-486.3096062,0.00016673,2]
[355997352,1741789838900,-500.0,0.00016673,2]
[355997353,1741789838910,-617.75880392,0.00016673,2]
[355997354,1741789838920,-500.0,0.00016673,2]
[355997355,1741789838929,-542.95539186,0.00016673,2]
[355997356,1741789838939,-500.0,0.00016673,2]
[355997357,1741789838948,-500.0,0.00016673,2]
[355997358,1741789838957,-500.0,0.00016673,2]